Cogmind - Beta 14 @@@ ROGUE MODE // 2024.10.17 @ 18:37:34 Player: zeyvai Result: Destroyed by Y-45 Defender with Beam Rifle Performance ------------- Evolutions (1) 500 Regions Visited (2) 400 Robots Destroyed (24) 120 Value Destroyed (530) 530 Prototype IDs (0) 0 Alien Tech Used (0) 0 Bonus (0) 0 TOTAL SCORE: 1550 Bonus ------- None Cogmind --------- Core Integrity 0/400 Matter 300/300 Energy 100/100 System Corruption 0% Temperature Cool (9) Movement Core (1350) Ox26 Location -9/Materials Parts ------- > --- POWER (1) -------- (None) > --- PROPULSION (3) --- (None) > --- UTILITY (3) ------ Huge Storage Unit Advanced Targeting Computer > --- WEAPON (2) ------- (None) > --- INVENTORY (25) --- Ion Engine Light Deuterium Engine Light Deuterium Engine Light Deuterium Engine Light Deuterium Engine Titanium Leg Titanium Leg Titanium Leg Armored Wheel Flight Unit Small Storage Unit Medium Storage Unit Large Storage Unit Large Storage Unit Large Storage Unit Large Storage Unit Large Storage Unit High-capacity Storage Unit Huge Storage Unit Small Battery (100) Advanced Targeting Computer Advanced Targeting Computer Advanced Targeting Computer Peak State ------------ > --- POWER ------------ Light Ion Engine > --- PROPULSION ------- Light Treads Flight Unit Flight Unit > --- UTILITY ---------- Heat Sink Huge Storage Unit Advanced Targeting Computer > --- WEAPON ----------- Small Laser Beam Rifle > --- INVENTORY -------- Ion Engine Light Deuterium Engine Light Deuterium Engine Light Deuterium Engine Light Deuterium Engine Titanium Leg Armored Wheel Flight Unit Small Storage Unit Medium Storage Unit Large Storage Unit Large Storage Unit Large Storage Unit Large Storage Unit Large Storage Unit High-capacity Storage Unit Huge Storage Unit Small Battery Advanced Targeting Computer Advanced Targeting Computer Advanced Targeting Computer Small Laser Mining Laser [Rating: 16] Favorites ----------- Power Ion Engine Engine Ion Engine Propulsion Light Treads Treads Light Treads Hover Unit Hover Unit Flight Unit Flight Unit Utility Huge Storage Unit Device Heat Sink Storage Huge Storage Unit Processor Advanced Targeting Computer Weapon Small Laser Energy Gun Small Laser Ballistic Gun Assault Rifle Special Weapon Mining Laser Build | -11 -10 -9 ------- Run | Yrd Mat Mat Slots Evolved 2 | . . 2 Power . | . . . Propulsion 1 | . . 1 Utility 1 | . . 1 Weapon . | . . . Parts Attached 29 | 6 12 11 Power 4 | 1 2 1 Engine 4 | 1 2 1 Core . | . . . Reactor . | . . . Propulsion 8 | 2 3 3 Treads 3 | 2 . 1 Leg . | . . . Wheel . | . . . Hover 1 | . 1 . Flight 4 | . 2 2 Utility 8 | 1 3 4 Device 1 | . . 1 Storage 6 | 1 3 2 Processor 1 | . . 1 Hackware . | . . . Protection . | . . . Artifact . | . . . Weapon 9 | 2 4 3 Energy Gun 5 | 1 2 2 Energy Cannon . | . . . Ballistic Gun 3 | 1 2 . Ballistic Cannon . | . . . Launcher . | . . . Special Weapon 1 | . . 1 Impact Weapon . | . . . Slashing Weapon . | . . . Piercing Weapon . | . . . Special Melee Weapon . | . . . Unidentified Prototypes . | . . . Parts Lost 17 | . 6 11 Power 3 | . 1 2 Propulsion 6 | . 2 4 Utility 1 | . . 1 Weapon 7 | . 3 4 Highest Loss Streak 9 | . 4 9 To Critical Strikes . | . . . Average Slot Usage (%) 75 | . 76 74 Engine 10 | . 11 8 Treads 14 | . 20 5 Hover 1 | . . 3 Flight 6 | . . 16 Device 2 | . . 6 Storage 12 | . 14 11 Processor 1 | . . 4 Energy Gun 17 | . 17 18 Ballistic Gun 6 | . 10 . Peak Build Rating 16 | 6 7 16 Average Rating 7 | 4 6 10 On Entrance 4 | . 6 7 Naked Turns . | . . . Heaviest Build 89 | 13 89 88 Greatest Support 40 | 40 40 20 Greatest Overweight (x) 28 | . 28 7 Average Overweight (x) 2 | . 2 3 Largest Inventory Capacity 25 | 8 25 25 Average Capacity 21 | 7 22 20 Most Carried 25 | 4 14 25 Average Carried 13 | 1 11 18 Final Capacity 25 | 8 15 25 Final Carried 23 | 2 12 23 Class Distribution -------------------- 68% | Mutant 31% | Scavenger-Mutant Dominant Class ---------------- Mutant | -10/Materials Scavenger-Mutant | -9/Materials Resources | -11 -10 -9 ----------- Run | Yrd Mat Mat Matter Collected 524 | 78 332 114 Remotely . | . . . Salvage Created 655 | . 488 167 Parts 52 | . 38 14 Haulers Intercepted . | . . . Recyclers Shooed 1 | . 1 . Parts Field Recycled . | . . . Retrieved Matter . | . . . Parts Self-Destructed . | . . . Prevented . | . . . Kills | -11 -10 -9 ------- Run | Yrd Mat Mat Combat Hostiles Destroyed 19 | . 14 5 Guns 18 | . 14 4 Classes Destroyed 6 | . 5 1 Worker 1 | . 1 . Operator 1 | . 1 . Watcher 3 | . 2 1 Swarmer 9 | . 6 3 Grunt 8 | . 8 . Sentry 2 | . . 2 Best Kill Streak 8 | . 8 4 Combat Bots Only 6 | . 6 4 Max Kills in Single Turn 1 | . 1 1 Gunslinging . | . . . Exploded . | . . . Melee . | . . . Uniques/NPCs Destroyed . | . . . Combat | -11 -10 -9 -------- Run | Yrd Mat Mat Hostile Shots Fired 266 | . 147 119 Missed 83 | . 51 32 Damage Taken 2092 | . 972 1120 Core 650 | . 236 414 Absorbed by Shields . | . . . Core Remaining (%) 52 | 100 5 . Volleys Fired 87 | . 63 24 Largest 2 | . 2 2 Hottest 96 | . 80 96 Shots Fired 160 | . 122 38 Gun 160 | . 122 38 Cannon . | . . . Launcher . | . . . Special . | . . . Kinetic 57 | . 57 . Thermal 103 | . 65 38 Explosive . | . . . Electromagnetic . | . . . Robot Hit Streak 10 | . 9 10 Robot Miss Streak 4 | . 4 3 Penetration Max . | . . . Secondary Targets 2 | . 2 . Max Gunslinging Chain 1 | . 1 . Shots Hit Robots 95 | . 69 26 Core Hits 37 | . 30 7 Critical Kills . | . . . Critical Parts Destroyed . | . . . Critical Strikes 2 | . 1 1 Burn 2 | . 1 1 Melee Attacks . | . . . Impact . | . . . Slashing . | . . . Piercing . | . . . Sneak Attacks . | . . . Combat Hostiles . | . . . Follow-up Attacks . | . . . Damage Inflicted 1227 | . 903 324 Guns 1225 | . 903 322 Cannons . | . . . Explosions . | . . . Melee . | . . . Ramming 2 | . . 2 Kinetic 380 | . 380 . Thermal 845 | . 523 322 Explosive . | . . . Electromagnetic . | . . . Impact . | . . . Slashing . | . . . Piercing . | . . . Highest Corruption . | . . . Average Corruption . | . . . Corruption Purged . | . . . Corruption Blocked . | . . . Overload Shots . | . . . Overflow Damage . | . . . Projectiles . | . . . Explosions . | . . . Melee . | . . . Knockbacks . | . . . Impact . | . . . Kinetic . | . . . Secondary . | . . . Self-Inflicted Damage . | . . . Shots . | . . . Rammed 4 | . . 4 Targets Rammed 4 | . . 4 Kicked . | . . . Crushed . | . . . Highest Temperature 198 | . 198 125 Average Temperature 57 | . 57 57 Received Heat Transfer 708 | . 366 342 Siege Activations . | . . . Robots Corrupted . | . . . Combat Hostiles . | . . . Parts Fried . | . . . Impact Corruptions . | . . . Robots Melted 1 | . . 1 Combat Hostiles 1 | . . 1 Parts Melted 3 | . 2 1 Heat Transferred 2401 | . 1557 844 Parts Sabotaged . | . . . Parts Stolen . | . . . Parts Stripped . | . . . Power Chain Reactions . | . . . Alert | -11 -10 -9 ------- Run | Yrd Mat Mat Peak Influence 284 | . 284 178 Initial 83 | . . 83 Average 110 | . 131 84 Maximum Alert Level 1 | . 1 . Low Security (%) 89 | 100 83 100 Level 1 10 | . 16 . Level 2 . | . . . Level 3 . | . . . Level 4 . | . . . Level 5 . | . . . High Security . | . . . Max Security . | . . . Squads Dispatched 3 | . 3 . Investigation 2 | . 2 . Extermination . | . . . Reinforcement 1 | . 1 . Assault . | . . . Garrison . | . . . Intercept . | . . . Searches Triggered . | . . . Construction Impeded . | . . . Haulers Reinforced . | . . . Active Scanning Responses . | . . . Cargo Convoy Interrupts . | . . . Stealth | -11 -10 -9 --------- Run | Yrd Mat Mat Distress Signals 1 | . 1 . Communications Jammed . | . . . Distress Signals . | . . . Times Spotted 29 | . 22 7 Peak Tracking Total 9 | . 9 4 Tactical Retreats 1 | . . 1 Traps | -11 -10 -9 ------- Run | Yrd Mat Mat Traps Triggered 1 | . 1 . Indirectly . | . . . Trap Hack Attempts . | . . . Triggered . | . . . Disarmed . | . . . Reprogrammed . | . . . Reused . | . . . Traps Extracted . | . . . Installed . | . . . Triggered . | . . . Machines | -11 -10 -9 ---------- Run | Yrd Mat Mat Machines Disabled . | . . . Max in Single Turn . | . . . Machines Repaired . | . . . Machines Dismantled . | . . . Machines Sabotaged . | . . . Overloaded Fab Kills . | . . . Hacking | -11 -10 -9 --------- Run | Yrd Mat Mat Machines Accessed 4 | . 4 . Terminals 3 | . 3 . Fabricators . | . . . Repair Stations . | . . . Recycling Units 1 | . 1 . Scanalyzers . | . . . Garrison Access . | . . . Total Hacks 15 | . 15 . Successful 7 | . 7 . Failed 8 | . 8 . Catastrophic 3 | . 3 . Database Lockouts . | . . . Manual 5 | . 5 . Terminals 14 | . 14 . Fabricators . | . . . Repair Stations . | . . . Recycling Units 1 | . 1 . Scanalyzers . | . . . Garrison Access . | . . . Terminal Hacks 4 | . 4 . Record 1 | . 1 . Robot Analysis 1 | . 1 . Alert Level 1 | . 1 . Investigation Status 1 | . 1 . Fabricator Hacks . | . . . Repair Station Hacks . | . . . Recycling Unit Hacks 1 | . 1 . Report Inventory 1 | . 1 . Scanalyzer . | . . . Garrison Access Hacks . | . . . Unauthorized Hacks 2 | . 2 . Terminals 2 | . 2 . Operators 2 | . 2 . Fabricators . | . . . Repair Stations . | . . . Recycling Units . | . . . Scanalyzers . | . . . Garrison Access . | . . . Data Cores Recovered . | . . . Used . | . . . Hacking Detections 4 | . 4 . Full Trace Events 1 | . 1 . Feedback Events . | . . . Feedback Blocked . | . . . Robot Schematics Acquired . | . . . Robots Built . | . . . Authchips . | . . . Time . | . . . Total Robot Build Rating . | . . . Part Schematics Acquired . | . . . Parts Built . | . . . Authchips . | . . . Time . | . . . Total Part Build Rating . | . . . Parts Repaired . | . . . Time . | . . . Parts Recycled . | . . . Recycled Matter . | . . . Retrieved Matter . | . . . Retrieved Components . | . . . Parts Scanalyzed . | . . . Part Schematics Acquired . | . . . Parts Damaged . | . . . Bothacking | -11 -10 -9 ------------ Run | Yrd Mat Mat Used RIF Installer . | . . . Robots Hacked . | . . . Non-combat . | . . . Combat . | . . . Robot Hacks Applied . | . . . Relay Couplers Released . | . . . Fabnet Peak Effective % . | . . . Robots Rewired . | . . . Allies Hacked . | . . . Hacks Repelled . | . . . Allies | -11 -10 -9 -------- Run | Yrd Mat Mat Total Allies . | . . . Largest Group . | . . . Highest-Rated Group . | . . . Highest-Rated Ally . | . . . Total Orders . | . . . Ally Attacks . | . . . Total Damage . | . . . Kills . | . . . Allies Corrupted . | . . . Allies Melted . | . . . Intel | -11 -10 -9 ------- Run | Yrd Mat Mat Robot Analysis Total 1 | . 1 . Derelict Logs Recovered . | . . . Drone Launches . | . . . Drone Recoveries . | . . . Exploration | -11 -10 -9 ------------- Run | Yrd Mat Mat Turns Passed 1841 | 60 1128 653 Spaces Moved 460 | 37 274 149 Core 33 | 14 13 6 Treads 333 | 23 237 73 Legs . | . . . Wheels . | . . . Hover 78 | . 24 54 Flight 16 | . . 16 Fastest Speed 50 | 50 160 114 Average Speed 318 | 118 331 343 Slowest Speed 1450 | 160 1450 480 Overloaded Moves . | . . . Propulsion Burnouts . | . . . Robots Hopped . | . . . Cave-ins Triggered . | . . . Exploration Rate (%) 23 | 3 49 17 Regions Visited 2 Branch Regions . Pre-discovered Areas . | . . . Known Exits Taken . | . . . Unknown Exits Taken 2 | 1 1 . Scrap Searched . | . . . Spaces Dug . | . . . Terrain Destroyed . | . . . Melee . | . . . Projectile . | . . . AOE . | . . . Terrain Rammed . | . . . Walls Destroyed . | . . . Machines Disabled . | . . . Actions | -11 -10 -9 --------- Run | Yrd Mat Mat Total 639 | 53 377 209 Wait 19 | 3 12 4 Move 458 | 36 273 149 Hop . | . . . Pick Up 40 | 8 16 16 Fast Attach 2 | . . 2 Attach 19 | 6 7 6 Detach 2 | . 1 1 Swap 8 | . 5 3 Drop . | . . . Fire 87 | . 63 24 Melee . | . . . Ram 3 | . . 3 Kick . | . . . Crush 1 | . . 1 Escape Stasis . | . . . Rewire . | . . . Trap . | . . . Miscellaneous . | . . . Route ------- -11/Scrapyard -10/Materials -9/Materials History --------- Turn | Location | Event 6 | -11/Scrapyard | Discovered new exit (range 15) 61 | -11/Scrapyard | Entered Materials 317 | -10/Materials | Build established: Mutant 876 | -10/Materials | Core integrity fell below 50% 897 | -10/Materials | Core integrity fell below 20% 934 | -10/Materials | Lost 4 parts (2n2w) 1054 | -10/Materials | Discovered new exit (range 16) 1189 | -10/Materials | Entered another Materials area 1189 | -9/Materials | Evolved 2 slots: Propulsion x1, Utility x1 1716 | -9/Materials | Build established: Scavenger-Mutant 1788 | -9/Materials | Core integrity fell below 50% 1822 | -9/Materials | Core integrity fell below 20% 1842 | -9/Materials | Destroyed by Y-45 Defender with Beam Rifle Last Messages --------------- Y-45 Defender heat damages core (-7). Imp. Ion Engine melted. Beam Rifle destroyed. Acquired 17 matter. Lgt. Ion Engine destroyed. R-06 Scavenger collects Hvy. Assault Rifle. R-06 Scavenger collects Beam Rifle. Flight Unit destroyed. R-06 Scavenger collects Lgt. Armor Plating. Mining Laser destroyed. Slammed into Y-45 Defender. Lgt. Treads destroyed. Flight Unit destroyed. Slammed into Y-45 Defender. Heat Sink destroyed. U-05 Engineer builds a Door. Slammed into Y-45 Defender. U-05 Engineer destroyed. Critical hit (Burn: +37). U-05 Engineer builds a Door. Map ----- +----------------------------------------------------+ | ?????????????????????????????????????????????????? | | ?????????????????????????????????????????????????? | | ?????????????????????????????????????????????????? | | ?????????????????????????????????????????????????? | | ?????????????????????????????????????????????????? | | ?????????????????????????????????????????????????? | | ?????????????????????????????????????????????????? | | ?????????????????????????????????????????????????? | | ?????????????????????????????????????????????????? | | ?????????????????????????????????????????????????? | | ?????????????????????????????????????????????????? | | ?????????????????????????????????????????????????? | | ?????????????????????????????????????????????????? | | ?????????????????????????#???????????????????????? | | ????????????????????????? #??????????????????????? | | ????????????????????????? #??????????????????????? | | ????????????????????????? #??????????????????????? | | ????????????????????????# #??????????????????????? | | ????????????????????????# #??????????????????????? | | ????????????????????????# #??????????????????????? | | ???????????????????##???# #??????????????????????? | | ????????????????#### #### #??????????????????????? | | ????????????????# ## ##??##+##??????????????? | | ????????????????# """ # #??# ??????????????? | | ????????????????# R" # #??# #??????????????? | | ????????????????# """ + @*#??# #??????????????? | | ????????????????# #=%Y#??# #?????????###### | | ????????????????# """ # % #??# #?????????# | | ????????????????# """ # #??# #?????????# = | | ????????????????# """ # #### #?????????# | | ????????????????# # ########### | | ????????????????# """ # | | ????????????????? """ # ############### | | ????????????????????"" # ########?????????????# | | ????????????????????? # #????????????????????# | | ?????????????????????### #????????????????????# | | ????????????? ####### #????????????????????# | | ????????????? #########??????????### | | ????????????? + #??????????# | | ????????????? ## """ #??????????# | | ????????????? #######k ## """ #??????????# | | ???????????????????????# ## """ #??????????# | | ???????????????????????# ## #??????????# | | ??????????????????????## ## #??????????## | | ??????????????????????# ###+###########????# | | ??????????????????????# #????# | | ??????????????????????# T ###### | | ??????????????????????# | | ??????????????????????# ###+#################+ | | ??????????????????????####### #???????????? | +----------------------------------------------------+ Best States ------------- Heat Dissipation 38 Energy Generation 10 Energy Capacity 250 Matter Stores 300 Matter Capacity 300 Sight Range 16 Terrain Scan Density 10 Evasion (%) 50 Targeting Accuracy 8 Recoil Reduction 2 Item Schematics ----------------- None Robot Schematics ------------------ None Fabricated ------------ Nothing Alien Tech Used ----------------- None Achievements -------------- None Challenges ------------ None Game ------ Seed HardcellCloakingMediator Manual? 0 Play Time 00:12:22 Cumulative 35.9 hours Start 2024.10.17 @ 18:27:18 End 2024.10.17 @ 18:37:34 Sessions 1 Manual Loads 0 Difficulty Rogue Special Mode None Game No. 43 Rogue 41 Adventurer 2 Explorer 0 Win Type - Total 0 Types 0/0/0/0/0/0/0/0/0 Lore% 16 Gallery% 30 Achievement% 23 Wizard Run 0 Options --------- Layout 1 ASCII 0 Keyboard 0 Movement Mouse Keybinds 0 Fullscreen 0 Font 28/X11 Map View 50x35 Zoom Use 0% Tactical HUD 0 Map Filters NONE Filters NONE Steam 1 RUN: d0b87399-3452-4ddd-93a1-03efdd172e59